bitfinex/quotes_SOLUSD_20250125
["timestamp","ask_amount","ask_price","bid_price","bid_amount"]
[1737799982915,20.0,247.71,247.65,0.063]
[1737799983094,20.0,247.7,247.65,0.063]
[1737799984522,1.0,247.71,247.65,0.063]
[1737799984708,26.2585,247.7,247.65,0.063]
[1737799986712,2.9,247.72,247.65,0.063]
[1737799986914,20.0,247.71,247.65,0.063]
[1737799987107,1.0,247.7,247.65,0.063]
[1737799988022,20.0,247.71,247.65,0.063]
[1737799988818,3.9,247.72,247.65,0.063]
[1737799989004,2.9,247.72,247.65,0.063]
[1737799989799,4.4491,247.74,247.65,0.063]
[1737799990519,2.983,247.77,247.65,137.663]
[1737799990721,2.983,247.77,247.66,23.776884]
[1737799993605,0.063,247.77,247.66,23.776884]
[1737799993804,20.063,247.77,247.66,23.776884]
[1737799994332,0.063,247.77,247.66,23.776884]
[1737799994530,20.063,247.77,247.66,23.776884]
[1737799994822,20.063,247.77,247.65,137.663]
[1737799995211,21.063,247.77,247.65,0.063]
[1737799995906,1.0,247.75,247.65,0.063]
[1737799999333,20.0,247.76,247.65,0.063]
[1737799999759,21.063,247.77,247.65,0.063]
[1737800001349,1.0,247.75,247.65,0.063]
[1737800001814,1.0,247.73,247.65,0.063]
[1737800005743,20.0,247.7,247.65,0.063]
[1737800007641,1.0,247.69,247.65,0.063]
[1737800009034,1.0,247.66,247.57,0.063]
[1737800009234,2.88,247.65,247.57,0.063]
[1737800009437,1.0,247.62,247.52,0.063]
[1737800011139,1.0,247.59,247.52,0.063]
[1737800011443,1.0,247.57,247.43,7.7325]
[1737800011852,21.0,247.57,247.43,7.7325]
[1737800012162,1.0,247.55,247.43,7.7325]
[1737800012666,1.0,247.52,247.43,7.7325]
[1737800012852,2.88,247.51,247.43,7.7325]
[1737800013048,2.88,247.51,247.4,0.063]
[1737800013369,1.0,247.47,247.4,0.063]
[1737800016051,2.58317786,247.47,247.4,0.063]
[1737800022065,20.0,247.43,247.4,0.063]
[1737800023883,2.58317786,247.47,247.4,0.063]
[1737800025184,1.58317786,247.47,247.4,0.063]
[1737800025387,81.4,247.51,247.4,0.063]
[1737800025564,2.86,247.5,247.4,0.063]
[1737800025886,3.86,247.5,247.4,0.063]
[1737800026057,20.0,247.48,247.4,0.063]
[1737800026459,21.0,247.48,247.4,0.063]
[1737800027217,20.0,247.47,247.4,0.063]
[1737800035188,21.0,247.48,247.4,0.063]
[1737800035392,20.0,247.47,247.4,0.063]
[1737800035888,1.0,247.46,247.4,0.063]
[1737800036094,1.0,247.46,247.38,0.03]
[1737800036095,1.0,247.4,247.38,0.03]
[1737800037096,1.0,247.42,247.38,0.03]
[1737800037477,1.0,247.4,247.38,0.03]
[1737800039704,0.73921994,247.46,247.38,0.03]
[1737800039892,2.84,247.39,247.38,0.03]
[1737800040496,2.86,247.42,247.38,0.03]
[1737800041691,2.86,247.44,247.38,0.03]
[1737800044582,83.02334343,247.51,247.39,7.63]
[1737800044903,2.86,247.5,247.39,7.63]
[1737800045396,22.86,247.5,247.39,7.63]
[1737800045975,20.0,247.51,247.39,7.63]
[1737800046180,20.0,247.51,247.4,23.776884]
[1737800046380,0.03,247.52,247.41,0.40408093]
[1737800046595,0.03,247.52,247.45,23.776884]
[1737800046797,0.03,247.52,247.46,0.40394841]
[1737800049003,0.03,247.52,247.45,161.376884]
[1737800051202,0.03,247.52,247.45,137.6]
[1737800051402,0.03,247.52,247.44,7.63]
[1737800057223,1.0,247.51,247.38,1.5824]
[1737800057513,2.86,247.5,247.38,1.5824]
[1737800057684,2.86,247.5,247.39,23.776884]
[1737800060106,0.03,247.51,247.39,165.418984]
[1737800060298,0.03,247.51,247.39,247.318984]
[1737800060609,0.03,247.51,247.41,23.776884]
[1737800060802,0.03,247.51,247.44,23.776884]
[1737800061090,0.03,247.51,247.45,0.40392985]
[1737800061309,0.03,247.51,247.47,23.776884]
[1737800061616,0.03,247.51,247.47,24.1807784]
[1737800061820,0.03,247.51,247.49,23.776884]
[1737800062116,0.03,247.51,247.49,161.376884]
[1737800062323,0.03,247.52,247.51,23.776884]
[1737800063523,0.03,247.52,247.51,27.817084]
[1737800065112,0.03,247.52,247.5,1.5524]
[1737800065615,20.0,247.65,247.51,23.776884]
[1737800065812,20.0,247.65,247.51,243.276884]
[1737800066025,20.0,247.65,247.53,23.776884]
[1737800070135,1.0,247.59,247.46,88.5064]
[1737800070294,21.0,247.61,247.46,81.9]
[1737800070700,1.0,247.59,247.45,137.6]
[1737800071008,2.0,247.57,247.45,137.6]
[1737800073818,21.0,247.61,247.45,137.6]
[1737800074001,2.9,247.6,247.41,23.776884]
[1737800074326,2.9,247.6,247.41,243.276884]
[1737800074817,1.0,247.59,247.41,243.276884]
[1737800075015,20.0,247.58,247.41,243.276884]
[1737800075399,20.0,247.57,247.41,243.276884]
[1737800077924,20.0,247.58,247.41,243.276884]
[1737800078224,20.0,247.57,247.41,243.276884]
[1737800078723,2.0,247.59,247.41,243.276884]
[1737800081826,2.0,247.57,247.41,243.276884]
[1737800083021,1.0,247.55,247.41,81.9]
[1737800083207,20.0,247.5,247.41,81.9]
[1737800083520,20.0,247.5,247.41,81.963]
[1737800083726,20.0,247.5,247.41,0.063]
[1737800086027,21.61046616,247.5,247.41,0.063]
[1737800087523,21.47405396,247.5,247.41,0.063]
[1737800090433,24.33405396,247.5,247.41,0.063]
[1737800099108,21.47405396,247.5,247.41,0.063]
[1737800100618,20.0,247.49,247.41,0.063]
[1737800101737,21.0,247.49,247.41,0.063]
[1737800101936,2.0,247.47,247.41,0.063]
[1737800102835,2.0,247.45,247.41,0.063]
[1737800103039,1.0,247.43,247.41,0.063]
[1737800103336,1.5919,247.46,247.41,0.063]
[1737800103527,1.0,247.45,247.41,0.063]
[1737800103736,2.0,247.45,247.41,0.063]
[1737800106240,1.0,247.45,247.41,0.063]
[1737800109765,20.0,247.44,247.41,0.063]
[1737800110430,1.0,247.45,247.41,0.063]
[1737800110645,20.0,247.44,247.41,0.063]
[1737800111441,20.0,247.44,247.38,0.03]
[1737800112539,22.0,247.45,247.38,0.03]
[1737800112849,1.0,247.44,247.38,0.03]
[1737800113447,1.0,247.45,247.38,0.03]
[1737800113647,1.0,247.44,247.38,0.03]
[1737800114230,1.0,247.43,247.38,0.03]
[1737800114441,2.0,247.41,247.38,0.03]
[1737800115732,1.0,247.41,247.38,0.03]
[1737800116439,1.0,247.43,247.38,0.03]
[1737800117235,1.0,247.41,247.38,0.03]
[1737800117947,2.0,247.41,247.38,0.03]
[1737800118152,1.0,247.41,247.38,0.03]
[1737800118661,1.0,247.39,247.38,0.03]
[1737800118857,3.82,247.39,247.38,0.03]
[1737800119333,1.0,247.39,247.38,0.03]
[1737800119533,2.82,247.39,247.38,0.03]
[1737800119742,4.82,247.39,247.38,0.03]
[1737800124056,3.82,247.39,247.38,0.03]
[1737800124250,0.03,247.41,247.38,0.03]
[1737800124453,2.82,247.4,247.38,0.03]
[1737800125855,3.82,247.4,247.38,0.03]
[1737800127762,4.82,247.4,247.38,0.03]
[1737800129846,24.82,247.4,247.38,0.03]
[1737800130051,20.0,247.39,247.38,0.03]
[1737800130847,21.0,247.39,247.38,0.03]
[1737800131248,20.0,247.39,247.38,0.03]
[1737800131567,2.82,247.4,247.38,0.03]
[1737800132856,2.8,247.4,247.38,0.03]
[1737800133766,22.83,247.41,247.38,0.03]
[1737800135662,0.03,247.41,247.38,0.03]
[1737800137672,0.03,247.41,247.39,23.776884]
[1737800138355,0.03,247.41,247.38,219.53]
[1737800139968,0.03,247.41,247.38,0.03]
[1737800141682,20.0,247.4,247.38,0.03]
[1737800142481,0.03,247.41,247.38,0.03]
[1737800149101,1.0,247.39,247.38,0.03]
[1737800150388,44.776884,247.39,247.38,0.03]
[1737800150570,1.0,247.33,247.24,1.6808]
[1737800150771,1.0,247.3,247.24,0.03]
[1737800152482,3.8,247.32,247.24,0.03]
[1737800152687,2.8,247.32,247.24,0.03]
[1737800153396,20.0,247.29,247.24,0.03]
[1737800154094,20.0,247.3,247.24,0.03]
[1737800154404,20.0,247.29,247.24,0.03]
[1737800155076,4.40992925,247.32,247.24,0.03]
[1737800155280,20.0,247.31,247.24,0.03]
[1737800155812,2.8,247.31,247.24,0.03]
[1737800158101,83.0656,247.41,247.24,0.03]
[1737800158404,2.8,247.34,247.24,0.03]
[1737800158920,22.8,247.37,247.25,1.596]
[1737800159086,2.8,247.37,247.25,1.596]
[1737800161218,20.0,247.38,247.26,29.987484]
[1737800163818,20.0,247.38,247.26,6.2106]
[1737800166091,20.0,247.36,247.26,6.2106]
[1737800166812,20.0,247.36,247.24,0.03]
[1737800166813,1.0,247.31,247.24,0.03]
[1737800167004,20.0,247.28,247.24,0.03]
[1737800168106,16.71730204,247.28,247.24,0.03]
[1737800168921,24.776884,247.25,247.24,0.03]
[1737800169105,27.576884,247.25,247.24,0.03]
[1737800169304,1.0,247.22,247.14,0.03]
[1737800169615,1.0,247.2,247.14,0.03]
[1737800170321,20.0,247.17,247.14,0.03]
[1737800171404,20.0,247.22,247.14,0.03]
[1737800171613,2.8,247.21,247.14,0.03]
[1737800177021,23.776884,247.3,247.17,6.6541]
[1737800177022,2.8,247.26,247.17,6.6541]
[1737800177345,2.8,247.3,247.17,6.6541]
[1737800177510,2.8,247.3,247.17,88.5541]
[1737800179724,2.8,247.3,247.18,23.776884]
[1737800179937,1.57344344,247.36,247.18,23.776884]
[1737800180238,2.8,247.35,247.2,23.776884]
[1737800180927,2.8,247.35,247.22,23.776884]
[1737800181225,2.8,247.35,247.21,0.40434562]
[1737800182426,2.8,247.35,247.2,30.430984]
[1737800183528,2.8,247.35,247.2,6.6541]
[1737800183918,2.8,247.35,247.21,23.776884]
[1737800184634,2.8,247.35,247.21,243.68129189]
[1737800184852,2.8,247.35,247.21,243.276884]
[1737800185135,2.8,247.35,247.22,0.40430847]
[1737800186533,20.0,247.36,247.22,0.40430847]
[1737800186732,20.0,247.36,247.24,23.776884]
[1737800186935,24.42921098,247.38,247.25,6.2354]
[1737800187445,24.42921098,247.38,247.26,23.776884]
[1737800187732,20.0,247.37,247.26,23.776884]
[1737800187912,20.0,247.37,247.25,6.2354]
[1737800188314,1.62921098,247.38,247.25,6.2354]
[1737800188315,21.62921098,247.38,247.25,6.2354]
[1737800188517,44.776884,247.37,247.25,6.2354]
[1737800188734,1.0,247.34,247.19,6.2354]
[1737800188930,20.0,247.31,247.19,6.2354]
[1737800189129,23.776884,247.3,247.19,6.2354]
[1737800189333,20.0,247.27,247.19,6.2354]
[1737800189530,22.8,247.27,247.19,6.2354]
[1737800191333,20.0,247.23,247.17,0.048]
[1737800192519,2.8,247.27,247.17,0.048]
[1737800194233,2.8,247.27,247.18,6.2354]
[1737800194741,2.8,247.3,247.18,6.2354]
[1737800195235,2.8,247.3,247.19,25.281784]
[1737800195441,0.03,247.27,247.19,25.281784]
[1737800195821,0.03,247.27,247.19,1.5049]
[1737800198140,0.03,247.27,247.19,25.281784]
[1737800198334,0.03,247.27,247.2,23.776884]
[1737800198721,0.03,247.27,247.19,163.28617853]
[1737800198938,0.03,247.27,247.19,162.881784]
[1737800199340,0.03,247.27,247.2,24.18126353]
[1737800199547,0.03,247.27,247.2,243.68126353]
[1737800199740,0.03,247.27,247.2,243.276884]
[1737800199940,0.03,247.27,247.21,24.18122847]
[1737800200948,0.03,247.27,247.23,24.776884]
[1737800201164,2.83,247.41,247.26,23.776884]
[1737800201325,0.03,247.41,247.27,0.4042399]
[1737800201648,0.03,247.41,247.28,30.977984]
[1737800201831,0.03,247.41,247.31,23.776884]
[1737800202024,0.03,247.41,247.32,0.40413848]
[1737800202945,0.03,247.41,247.34,23.776884]
[1737800203128,0.03,247.41,247.36,23.776884]
[1737800203332,0.03,247.41,247.37,0.40409961]
[1737800203734,0.03,247.41,247.37,138.00409961]
[1737800203923,0.03,247.41,247.38,23.776884]
[1737800204123,0.03,247.41,247.39,0.40404427]
[1737800206629,0.03,247.41,247.38,23.776884]
[1737800207932,0.03,247.41,247.38,24.18098139]
[1737800212134,0.03,247.41,247.37,219.5]
[1737800212334,0.03,247.41,247.35,6.2011]
[1737800217152,0.03,247.41,247.29,6.3079]
[1737800217367,20.0,247.39,247.23,6.3079]
[1737800217737,20.0,247.38,247.24,23.776884]
[1737800217937,20.0,247.38,247.23,6.3079]
[1737800218345,20.0,247.34,247.21,139.1027]
[1737800218557,20.0,247.38,247.17,6.3559]
[1737800218735,20.0,247.38,247.18,23.776884]
[1737800219976,43.776884,247.37,247.18,23.776884]
[1737800220139,20.0,247.33,247.17,143.9559]
[1737800220754,43.776884,247.32,247.17,0.048]
[1737800221067,44.776884,247.32,247.17,0.048]
[1737800221638,43.776884,247.32,247.17,0.048]
[1737800223446,2.86,247.31,247.17,0.048]
[1737800224660,2.84,247.3,247.17,0.048]
[1737800224841,2.84,247.33,247.18,24.18127983]
[1737800225041,2.84,247.33,247.18,243.68127983]
[1737800225259,2.84,247.33,247.18,243.276884]
[1737800225458,2.84,247.33,247.18,244.276884]
[1737800225838,2.86,247.39,247.22,23.776884]
[1737800226042,2.86,247.39,247.23,0.40427292]
[1737800226348,20.0,247.38,247.25,23.776884]
[1737800227365,20.0,247.38,247.25,24.1811531]
[1737800228261,20.0,247.38,247.25,23.776884]
[1737800229964,20.0,247.38,247.25,24.18113836]
[1737800230268,0.03,247.41,247.27,23.776884]
[1737800230466,0.03,247.41,247.28,0.40421814]
[1737800233852,0.03,247.41,247.29,23.776884]
[1737800235153,0.03,247.41,247.24,137.6]
[1737800235483,0.03,247.41,247.22,219.5]
[1737800236073,20.0,247.39,247.23,23.776884]
[1737800236645,0.03,247.41,247.23,23.776884]
[1737800236847,2.86,247.4,247.23,23.776884]
[1737800240263,20.0,247.38,247.23,105.676884]
[1737800240764,20.0,247.38,247.23,243.276884]
[1737800240957,20.0,247.38,247.24,0.40429011]
[1737800241664,2.86,247.4,247.25,24.776884]
[1737800241850,0.03,247.41,247.28,1.0]
[1737800242049,0.03,247.41,247.3,23.776884]
[1737800242285,0.03,247.41,247.32,23.776884]
[1737800242582,0.03,247.41,247.34,23.776884]
[1737800242756,0.03,247.41,247.35,0.40408367]
[1737800243081,0.03,247.41,247.36,23.776884]
[1737800243252,0.03,247.41,247.37,0.40407868]
[1737800245674,0.03,247.4,247.37,219.5]
[1737800246372,0.03,247.4,247.38,23.776884]
[1737800247174,0.03,247.4,247.39,0.40409526]
[1737800247883,0.03,247.4,247.38,161.376884]
[1737800248266,0.03,247.4,247.38,137.6]
[1737800248574,0.03,247.4,247.29,227.3052]
[1737800248778,0.03,247.4,247.29,219.5]
[1737800249283,0.03,247.4,247.3,23.776884]
[1737800249858,0.03,247.4,247.29,81.9]
[1737800250063,0.03,247.4,247.25,137.6]
[1737800250064,20.0,247.38,247.25,137.6]
[1737800250381,20.0,247.38,247.26,23.776884]
[1737800250973,20.0,247.38,247.23,225.7121]
[1737800251172,20.0,247.38,247.23,219.563]
[1737800251361,20.0,247.38,247.24,25.18117862]
[1737800251778,20.0,247.38,247.24,26.18117862]
[1737800252168,20.0,247.38,247.24,24.18117862]
[1737800254289,20.0,247.38,247.24,25.18117862]
[1737800255097,20.0,247.38,247.24,244.68117862]
[1737800255297,20.0,247.38,247.24,244.276884]
[1737800255503,20.0,247.38,247.25,24.18112024]
[1737800259399,20.03,247.38,247.25,24.18112024]
[1737800260775,20.03,247.38,247.24,81.963]
[1737800263005,0.03,247.38,247.25,23.776884]
[1737800263185,0.03,247.38,247.25,24.18124186]
[1737800263388,0.03,247.38,247.25,243.68124186]
[1737800263699,20.03,247.38,247.25,243.276884]
[1737800267003,20.03,247.38,247.25,105.676884]
[1737800268390,0.03,247.38,247.25,248.321284]
[1737800268595,0.03,247.38,247.28,23.776884]
[1737800268802,0.03,247.38,247.29,0.40418219]
[1737800269206,20.03,247.38,247.29,0.40418219]
[1737800269590,20.03,247.38,247.3,23.776884]
[1737800269793,0.03,247.38,247.31,0.40419455]
[1737800270009,0.03,247.38,247.32,23.776884]
[1737800270220,0.03,247.38,247.33,0.40412874]
[1737800270500,0.03,247.38,247.33,138.00412874]
[1737800270706,0.03,247.38,247.33,137.6]
[1737800271497,0.03,247.38,247.34,23.776884]
[1737800271703,0.03,247.38,247.35,0.40411293]
[1737800275929,0.03,247.38,247.36,23.776884]
[1737800277021,0.03,247.38,247.35,81.9]
[1737800277221,0.03,247.38,247.25,219.563]
[1737800277813,0.03,247.38,247.26,23.776884]
[1737800279260,20.0,247.34,247.25,0.063]
[1737800279563,2.86,247.33,247.25,0.063]
[1737800280353,2.86,247.33,247.25,0.0001]
[1737800280518,4.478329,247.33,247.25,0.0001]
[1737800281346,4.478329,247.33,247.24,0.0067]
[1737800281753,2.86,247.33,247.24,0.0067]
[1737800283430,2.86,247.33,247.24,0.41103154]
[1737800284348,2.86,247.33,247.25,23.776884]
[1737800284556,2.86,247.33,247.26,0.40424772]
[1737800284858,2.86,247.33,247.27,23.776884]
[1737800285024,2.86,247.33,247.28,0.40424803]
[1737800285347,2.89,247.33,247.28,0.40424803]
[1737800286048,2.89,247.33,247.27,23.776884]
[1737800286259,2.89,247.33,247.27,24.18112506]
[1737800286761,0.03,247.33,247.27,24.18112506]
[1737800287168,0.03,247.33,247.27,25.18112506]
[1737800287370,0.03,247.33,247.27,248.72522506]
[1737800287671,0.03,247.33,247.32,24.776884]
[1737800287867,0.03,247.33,247.32,244.68097055]
[1737800288061,0.03,247.33,247.32,244.276884]
[1737800292272,0.03,247.33,247.32,243.276884]
[1737800292862,0.03,247.33,247.32,244.276884]
[1737800294255,0.03,247.33,247.32,243.276884]
[1737800296277,0.03,247.33,247.32,244.276884]
[1737800297563,0.03,247.33,247.32,243.276884]
[1737800297866,0.03,247.33,247.32,81.9]
[1737800298456,0.03,247.33,247.32,105.676884]
[1737800298766,0.03,247.33,247.32,81.9]
[1737800300668,0.03,247.33,247.3,137.6]
[1737800300864,0.03,247.33,247.24,81.9067]
[1737800300865,0.03,247.33,247.24,0.0067]
[1737800301248,0.03,247.33,247.24,219.91106077]
[1737800301448,0.03,247.33,247.25,23.776884]
[1737800302172,0.03,247.33,247.26,0.40426679]
[1737800305656,0.03,247.33,247.27,23.776884]
[1737800305851,0.03,247.33,247.28,0.40423643]
[1737800307284,0.03,247.33,247.29,23.776884]
[1737800307454,0.03,247.33,247.3,0.40414575]
[1737800307773,0.03,247.33,247.32,23.776884]
[1737800308078,0.03,247.33,247.32,24.18099673]
[1737800308251,0.03,247.33,247.32,0.40411273]
[1737800309158,0.03,247.33,247.32,244.68099673]
[1737800309365,0.03,247.33,247.32,243.276884]
[1737800314690,0.03,247.33,247.32,244.276884]
[1737800318180,0.03,247.33,247.32,257.406884]
[1737800318364,0.03,247.33,247.32,258.917184]
[1737800318564,0.03,247.33,247.32,570.917184]
[1737800318768,0.03,247.33,247.32,577.237584]
[1737800318973,0.03,247.38,247.37,1.0]
[1737800319266,0.03,247.38,247.37,244.65082356]
[1737800319566,0.03,247.38,247.37,244.246884]
[1737800320081,0.03,247.38,247.37,248.289384]
[1737800322182,0.03,247.38,247.37,249.289384]
[1737800322862,0.03,247.5,247.39,18.1722]
[1737800323064,0.03,247.5,247.39,0.40389145]
[1737800324990,0.03,247.5,247.39,37.31077545]
[1737800325786,0.03,247.5,247.4,40.948884]
[1737800325986,0.03,247.5,247.4,244.246884]
[1737800326286,0.03,247.5,247.4,219.47]
[1737800326677,0.03,247.5,247.4,243.246884]
[1737800328187,20.0,247.44,247.36,219.47]
[1737800328391,20.0,247.44,247.37,0.40410355]
[1737800328580,20.0,247.44,247.37,24.18098755]
[1737800329285,1.6572,247.45,247.37,24.18098755]
[1737800329490,0.03,247.5,247.37,24.18098755]
[1737800331690,0.03,247.5,247.37,243.65098755]
[1737800331882,0.03,247.5,247.37,243.246884]
[1737800332085,20.0,247.49,247.38,24.18090936]
[1737800335373,20.0,247.49,247.38,243.65090936]
[1737800335677,20.0,247.49,247.38,243.246884]
[1737800335878,20.0,247.49,247.39,24.1809209]
[1737800338582,20.0,247.49,247.39,25.1809209]
[1737800338970,20.0,247.49,247.39,248.6930209]
[1737800339302,20.0,247.49,247.39,247.288984]
[1737800340376,20.0,247.49,247.4,24.18087676]
[1737800340789,20.0,247.49,247.39,81.9]
[1737800341295,20.0,247.4,247.39,81.9]
[1737800341495,20.0,247.4,247.38,0.063]
[1737800342001,20.0,247.4,247.38,4.882e-05]
[1737800343503,20.0,247.39,247.38,4.882e-05]
[1737800344082,1.6025,247.37,247.24,0.0067]
[1737800344288,20.0,247.33,247.24,0.0067]
[1737800348295,1.6025,247.32,247.24,0.0067]
[1737800349209,1.6025,247.32,247.25,24.1811862]
[1737800351593,20.0,247.33,247.25,24.1811862]
[1737800351801,20.0,247.33,247.25,28.2255862]
[1737800352385,20.0,247.33,247.25,247.6955862]
[1737800352585,20.0,247.33,247.25,247.291284]
[1737800353404,20.0,247.33,247.25,243.246884]
[1737800353787,20.0,247.33,247.25,219.47]
[1737800353981,20.0,247.33,247.24,0.0067]
[1737800354389,1.6025,247.32,247.24,0.0067]
[1737800365918,1.6025,247.32,247.24,81.9067]
[1737800366215,1.6025,247.32,247.25,23.776884]
[1737800366426,1.6025,247.32,247.25,243.246884]
[1737800367332,6.4336,247.36,247.25,243.246884]
[1737800367819,1.60252638,247.37,247.26,0.40424653]
[1737800368023,1.5621,247.38,247.27,23.776884]
[1737800368791,1.5621,247.38,247.27,24.18110321]
[1737800368990,1.0,247.26,247.17,0.048]
[1737800369208,3.46421921,247.25,247.13,0.063]
[1737800369413,20.0,247.22,247.13,0.063]
[1737800369792,20.0,247.22,247.13,137.633]
[1737800370208,20.0,247.21,247.13,0.063]
[1737800370405,4.84263897,247.21,247.13,0.063]
[1737800370719,1.5321,247.2,247.13,0.063]
[1737800373411,4.84263897,247.21,247.13,137.633]
[1737800373800,4.84263897,247.21,247.14,23.806884]
[1737800374313,1.618949,247.2,247.14,23.806884]
[1737800375520,3.06,247.25,247.14,23.806884]
[1737800375910,20.0,247.22,247.14,0.03]
[1737800378606,1.618673,247.21,247.14,23.806884]
[1737800378805,1.618673,247.21,247.14,0.03]
[1737800382629,20.0,247.2,247.14,0.03]
[1737800386030,20.03,247.2,247.14,0.03]
[1737800388945,20.03,247.2,247.14,81.93]
[1737800389346,20.03,247.2,247.16,137.633]
[1737800389347,0.03,247.2,247.16,137.633]
[1737800390945,0.03,247.2,247.16,0.063]
[1737800399558,1.03,247.2,247.14,0.03]
[1737800399749,0.03,247.2,247.14,0.03]
[1737800400234,1.03,247.2,247.14,0.03]
[1737800400432,20.0,247.18,247.14,0.03]
[1737800403955,21.64553395,247.18,247.14,0.03]
[1737800406130,1.64553395,247.18,247.14,0.03]
[1737800406341,0.03,247.2,247.14,0.03]
[1737800406932,20.0,247.19,247.14,0.03]
[1737800412339,1.63108261,247.2,247.14,0.03]
[1737800412945,20.0,247.19,247.14,0.03]
[1737800414153,1.63108261,247.2,247.14,0.03]
[1737800414358,0.03,247.2,247.14,219.53]
[1737800414659,0.03,247.2,247.15,23.776884]
[1737800415749,0.03,247.2,247.15,243.276884]
[1737800415946,0.03,247.2,247.15,247.322884]
[1737800416637,0.03,247.2,247.15,243.276884]
[1737800417142,0.03,247.2,247.14,1.5897]
[1737800420465,0.03,247.2,247.14,0.03]
[1737800424373,0.03,247.2,247.14,105.706884]
[1737800425569,0.03,247.2,247.14,81.93]
[1737800425753,0.03,247.2,247.14,0.03]
[1737800426749,20.0,247.19,247.14,0.03]
[1737800432184,0.03,247.2,247.14,0.03]
[1737800433366,20.0,247.19,247.14,0.03]
[1737800434479,20.03,247.2,247.14,0.03]
[1737800437177,0.03,247.2,247.14,81.93]
[1737800438484,0.03,247.2,247.15,23.776884]
[1737800442365,0.03,247.2,247.15,243.276884]
[1737800443362,0.03,247.2,247.15,219.5]
[1737800445065,0.03,247.2,247.14,0.03]
[1737800445265,0.03,247.2,247.13,0.063]
[1737800445466,4.87263897,247.2,247.13,0.063]
[1737800447493,0.03,247.2,247.13,0.063]
[1737800450392,20.0,247.18,247.13,0.063]
[1737800456094,21.63207108,247.18,247.13,0.063]
[1737800456599,1.63207108,247.18,247.13,0.063]
[1737800456799,20.0,247.19,247.13,0.063]
[1737800457296,0.03,247.2,247.13,0.063]
[1737800458493,20.0,247.19,247.13,0.063]
[1737800458996,0.03,247.2,247.14,23.776884]
[1737800459299,0.03,247.2,247.14,161.376884]
[1737800461388,0.03,247.2,247.14,81.9]
[1737800461585,20.0,247.19,247.14,81.9]
[1737800461779,20.0,247.19,247.13,0.063]
[1737800462291,20.0,247.18,247.13,0.063]
[1737800462803,20.0,247.18,247.05,227.2268]
[1737800463106,20.0,247.17,247.05,81.9]
[1737800464892,21.0,247.17,246.99,227.7022]